bitfinex-derivatives/quotes_ETHF0:USTF0_20251117
["timestamp","ask_amount","ask_price","bid_price","bid_amount"]
[1763353358805,5.04584559,3172.8,3171.7,3.4558]
[1763353359010,0.71955581,3172.7,3171.7,3.4558]
[1763353359506,0.0047288,3172.4,3171.8,0.0047288]
[1763353359816,0.2286,3171.9,3171.8,0.0047288]
[1763353360010,0.2286,3171.9,3171.8,0.2527288]
[1763353362812,0.2286,3171.9,3171.8,0.0047288]
[1763353366115,3.2078,3172.1,3171.8,0.2527288]
[1763353366310,3.2078,3172.1,3172.0,0.248]
[1763353366618,0.00265298,3172.5,3172.4,0.248]
[1763353366816,0.00265298,3172.5,3172.4,3.4558]
[1763353367223,3.2078,3173.4,3172.5,0.1357]
[1763353367518,3.2078,3173.4,3173.3,0.248]
[1763353367721,3.4364,3173.4,3173.3,0.248]
[1763353368109,3.43889954,3173.4,3173.3,0.2517304]
[1763353368518,3.43889954,3173.4,3173.3,0.0037304]
[1763353370525,4.76594513,3173.4,3173.3,0.0037304]
[1763353371017,3.45589954,3173.4,3173.3,0.2453304]
[1763353371223,3.45589954,3173.4,3173.3,0.0037304]
[1763353374322,4.6225166,3173.4,3173.3,0.0037304]
[1763353377228,3.45589954,3173.4,3173.3,0.0037304]
[1763353379329,0.1442,3174.0,3173.3,0.0037304]
[1763353379330,3.2078,3173.9,3173.3,0.2453304]
[1763353379523,3.2078,3174.3,3173.8,0.2416]
[1763353380227,0.2456,3173.9,3173.5,0.1372]
[1763353380529,0.2488978,3173.9,3173.8,0.2416]
[1763353380920,0.0032978,3173.9,3173.8,0.2416]
[1763353381924,0.2488978,3173.9,3173.5,0.1372]
[1763353382122,0.2488978,3173.9,3173.8,0.2416]
[1763353382628,0.0032978,3173.9,3173.8,0.2416]
[1763353383630,3.2078,3175.2,3174.7,0.2416]
[1763353383930,0.2456,3175.2,3175.1,3.4494]
[1763353384129,0.2456,3175.2,3174.9,1.16661706]
[1763353384130,3.2078,3175.6,3175.4,0.2416]
[1763353384335,3.3293,3176.0,3175.5,0.3788]
[1763353384632,0.3831,3175.5,3175.4,0.0047288]
[1763353385626,0.2456,3175.5,3175.4,0.0047288]
[1763353385824,0.71633286,3175.9,3175.4,0.0047288]
[1763353386026,0.2456,3175.5,3175.4,0.0047288]
[1763353386539,0.00263259,3176.0,3175.9,0.2416]
[1763353386727,0.00263259,3176.0,3175.9,0.24411723]
[1763353387130,0.38573259,3176.0,3175.9,0.00251723]
[1763353387535,0.24823259,3176.0,3175.9,0.00251723]
[1763353387837,0.3806,3175.5,3175.4,0.0047288]
[1763353388535,0.71554235,3175.9,3175.4,0.2463288]
[1763353388733,0.2456,3175.6,3175.4,0.00817571]
[1763353388935,0.2456,3175.5,3175.4,0.00817571]
[1763353389137,0.3806,3175.5,3175.4,0.00817571]
[1763353389342,0.3806,3175.5,3174.7,3.2078]
[1763353389343,0.2456,3174.8,3174.7,3.2078]
[1763353389834,0.2456,3174.4,3173.7,3.2078]
[1763353390139,3.2078,3174.9,3174.3,0.2416]
[1763353390341,3.2125288,3174.9,3174.3,0.25038358]
[1763353390838,0.2456,3174.4,3174.3,0.00878358]
[1763353391536,0.2456,3173.8,3173.7,3.2078]
[1763353391737,0.2456,3173.8,3172.0,0.1372]
[1763353391738,0.2456,3173.2,3172.6,3.2078]
[1763353392038,4.62001706,3173.2,3172.6,3.2078]
[1763353392341,0.2456,3172.3,3172.2,3.2078]
[1763353392538,0.2456,3172.3,3172.2,3.21018916]
[1763353392539,0.24880611,3172.3,3172.2,3.21018916]
[1763353393239,3.45660611,3172.3,3172.2,0.00238916]
[1763353394946,3.21100611,3172.3,3172.2,0.24398916]
[1763353395640,0.00320611,3172.3,3172.2,0.24398916]
[1763353396342,0.00320611,3172.3,3172.2,0.38118916]
[1763353396931,3.2078,3172.9,3172.8,0.3908]
[1763353397140,3.2078,3173.5,3172.8,0.3908]
[1763353397343,3.2078,3173.5,3173.4,0.2438]
[1763353397533,3.2078,3173.5,3173.1,3.2078]
[1763353397944,3.21103888,3173.5,3173.1,3.2078]
[1763353398442,0.00323888,3173.5,3173.1,3.2078]
[1763353400449,0.00323888,3173.5,3173.4,0.3761]
[1763353400641,3.2078,3174.3,3173.5,0.2305]
[1763353400846,3.2078,3174.3,3173.8,1.16661706]
[1763353401643,3.21003639,3174.3,3173.8,1.16661706]
[1763353402044,0.00223639,3174.3,3174.2,0.2305]
[1763353406546,0.2306,3174.2,3174.1,3.2078]
[1763353407753,0.00223639,3174.3,3174.1,3.4383]
[1763353407953,0.00223639,3174.3,3174.2,1.39711706]
[1763353408553,0.00223639,3174.3,3174.2,0.2305]
[1763353410757,3.2078,3175.3,3174.2,10.8581]
[1763353410950,3.2078,3175.3,3174.6,1.16661706]
[1763353411149,4.37441706,3175.3,3174.5,0.1257]
[1763353411349,4.37441706,3175.3,3174.2,1.478]
[1763353411757,4.37694336,3175.3,3174.2,1.48173687]
[1763353411961,0.2306,3174.3,3174.2,1.48173687]
[1763353412258,0.2306,3174.3,3174.2,0.00373687]
[1763353413054,3.2078,3175.1,3175.0,0.2305]
[1763353413255,0.2306,3174.7,3174.6,1.16661706]
[1763353413455,3.2078,3175.1,3174.6,1.39711706]
[1763353414150,3.2078,3175.1,3175.0,0.2305]
[1763353414358,3.2078,3175.7,3175.2,0.2305]
[1763353414747,3.2078,3175.7,3175.2,1.39711706]
[1763353415256,3.2078,3175.7,3175.2,0.2305]
[1763353415455,0.2331263,3175.3,3175.0,3.2078]
[1763353415660,0.0025263,3175.3,3175.0,3.4383]
[1763353416462,0.2306,3174.7,3174.6,3.05273092]
[1763353416759,3.2078,3175.2,3174.2,4.37815393]
[1763353417559,0.2306,3174.3,3174.2,3.21153687]
[1763353418358,3.2078,3174.8,3174.2,3.21153687]
[1763353418558,0.2306,3174.3,3174.2,3.21153687]
[1763353419357,0.2306,3174.3,3174.2,0.00373687]
[1763353419763,0.0699,3174.6,3174.2,0.00373687]
[1763353420154,0.2306,3174.3,3174.2,0.00373687]
[1763353420351,0.0699,3174.6,3174.2,0.00373687]
[1763353420856,0.2306,3174.3,3174.2,0.00373687]
[1763353426158,0.95044021,3174.3,3174.2,0.00373687]
[1763353426365,0.95044021,3174.3,3173.0,5.05138061]
[1763353426366,0.2306,3173.8,3173.0,5.05138061]
[1763353426565,0.2306,3173.8,3173.0,3.3541]
[1763353426872,0.2306,3173.8,3173.0,44.1541]
[1763353427265,0.2306,3173.8,3173.7,0.00752357]
[1763353427772,0.95061039,3173.8,3173.7,0.00752357]
[1763353427969,0.95061039,3173.8,3173.0,3.2078]
[1763353427970,0.2306,3173.1,3173.0,3.2078]
[1763353428171,3.2078,3173.5,3173.0,3.2078]
[1763353428663,3.2918,3173.5,3173.0,3.2078]
[1763353428863,0.2375,3173.1,3173.0,3.2078]
[1763353429063,0.0047288,3173.4,3173.0,3.35127639]
[1763353429263,0.0047288,3173.4,3173.1,1.16661706]
[1763353429565,0.2375,3173.1,3173.0,3.21137639]
[1763353430874,0.0047288,3173.4,3173.0,3.45877639]
[1763353431067,0.0047288,3173.4,3173.0,3.59867639]
[1763353432677,0.2375,3173.1,3173.0,3.21137639]
[1763353432880,0.2375,3173.1,3173.0,0.00357639]
[1763353433969,3.4453,3173.1,3173.0,0.00357639]
[1763353434274,4.16410529,3173.1,3173.0,0.00357639]
[1763353436480,3.4453,3173.1,3173.0,0.00357639]
[1763353436879,0.0047288,3173.4,3173.0,0.39087639]
[1763353437079,0.0047288,3173.4,3173.3,0.2474]
[1763353437377,0.0047288,3173.4,3173.0,0.14347639]
[1763353437378,0.2422288,3173.4,3173.0,0.14347639]
[1763353437578,0.2375,3173.1,3173.0,0.14347639]
[1763353437777,0.2375,3173.1,3173.0,0.00357639]
[1763353441081,0.0047288,3173.4,3173.0,0.39087639]
[1763353441776,0.0047288,3173.4,3173.3,1.56941096]
[1763353441977,0.2422288,3173.4,3173.0,0.14347639]
[1763353444282,0.2422288,3173.4,3173.0,0.00357639]
[1763353444283,0.2375,3173.1,3173.0,0.00357639]
[1763353444589,3.2125288,3173.4,3173.0,0.39087639]
[1763353444786,0.2375,3173.1,3173.0,0.39087639]
[1763353445282,3.2125288,3173.4,3173.3,0.2474]
[1763353445485,0.0047288,3173.4,3173.3,0.2474]
[1763353446485,0.0047288,3173.4,3173.3,1.56941096]
[1763353446682,0.0047288,3173.4,3173.3,0.2474]
[1763353447182,0.2422288,3173.4,3173.0,3.35127639]
[1763353447382,0.2422288,3173.4,3173.3,0.2474]
[1763353447688,0.0047288,3173.4,3173.3,0.2474]
[1763353448686,0.2422288,3173.4,3173.0,3.35127639]
[1763353449190,0.2422288,3173.4,3173.3,0.2474]
[1763353449587,0.0047288,3173.4,3173.3,0.2474]
[1763353449888,1.12753426,3174.5,3174.2,0.2474]
[1763353450090,0.0025263,3175.3,3174.6,0.2474]
[1763353450385,0.72186408,3175.3,3174.7,3.2078]
[1763353450686,0.71933778,3175.2,3174.7,3.2078]
[1763353450885,0.0025263,3175.3,3174.7,3.2078]
[1763353452091,3.2078,3175.0,3174.6,0.0047288]
[1763353452890,0.0025263,3175.3,3174.6,0.0047288]
[1763353453190,0.7192583,3175.3,3174.6,0.0047288]
[1763353454085,0.0025263,3175.3,3174.6,0.0047288]
[1763353454689,0.71869735,3175.3,3174.6,0.0047288]
[1763353455195,0.0025263,3175.3,3174.6,0.0047288]
[1763353459792,0.2375,3174.7,3174.6,0.0047288]
[1763353461194,0.2375,3174.7,3173.8,3.2078]
[1763353461499,3.3384,3174.5,3173.8,3.2078]
[1763353462398,3.3431288,3174.5,3173.8,3.2125288]
[1763353465198,3.2125288,3174.5,3173.8,3.2125288]
[1763353465999,3.3431288,3174.5,3173.8,3.2125288]
[1763353466200,0.71419478,3174.4,3173.8,3.2125288]
[1763353467392,0.2277,3173.9,3173.8,3.2125288]
[1763353467598,0.2277,3173.9,3173.8,0.0047288]
[1763353472305,0.2277,3173.4,3173.0,0.14347639]
[1763353473802,0.2277,3173.4,3172.9,0.0047288]
[1763353473803,0.3674,3173.0,3172.9,0.0047288]
[1763353474104,3.2078,3173.1,3172.5,0.1445]
[1763353474304,3.4355,3173.1,3173.0,0.2312]
[1763353474507,3.4355,3173.1,3172.5,0.1445]
[1763353474904,3.43895176,3173.1,3172.5,0.15156232]
[1763353475500,0.2277,3172.6,3172.5,0.38276232]
[1763353476406,0.0047288,3172.9,3172.8,0.2312]
[1763353480208,0.0047288,3172.9,3172.8,1.55321096]
[1763353480509,3.2078,3173.5,3173.4,0.2312]
[1763353480709,3.2078,3173.9,3173.8,0.2312]
[1763353481116,3.2078,3174.4,3173.8,0.2312]
[1763353481318,0.71393872,3174.3,3173.8,0.2312]
[1763353481612,3.2078,3174.0,3173.9,0.2312]
[1763353482210,3.4355,3174.0,3173.9,0.2312]
[1763353482416,3.4355,3174.0,3173.5,0.1445]
[1763353484713,3.4355,3174.0,3173.9,0.2312]
[1763353485116,4.15026762,3174.0,3173.9,0.2312]
[1763353486218,4.15026762,3174.0,3173.5,0.1445]
[1763353486513,3.4355,3174.0,3173.5,0.1445]
[1763353487316,3.4355,3174.0,3173.9,0.2312]
[1763353487517,4.15082468,3174.0,3173.9,0.2312]
[1763353488615,0.71532468,3174.0,3173.9,0.2312]
[1763353488816,0.00343975,3174.3,3174.2,0.2345]
[1763353489925,0.24773975,3174.3,3174.2,0.2345]
[1763353491010,0.96359709,3174.3,3174.2,0.2345]
[1763353492218,0.71929709,3174.3,3174.2,0.2345]
[1763353492619,3.2078,3174.8,3174.7,0.2345]
[1763353492926,3.2078,3174.8,3174.7,1.40009162]
[1763353493324,3.2078,3175.2,3174.7,1.40009162]
[1763353493512,0.71533761,3175.1,3174.7,1.40009162]
[1763353493715,0.71801364,3175.1,3174.7,1.40009162]
[1763353494220,0.71801364,3175.1,3175.0,0.3698]
[1763353494221,0.24697603,3175.1,3175.0,0.3698]
[1763353494422,0.24697603,3175.1,3175.0,0.37263623]
[1763353498021,0.00267603,3175.1,3175.0,1.53822785]
[1763353500329,3.2078,3175.6,3175.5,0.3698]
[1763353500630,2.85980248,3176.6,3175.9,0.2345]
[1763353500631,3.4521,3176.0,3175.9,0.2345]
[1763353501017,3.4521,3176.0,3175.5,1.30089162]
[1763353501327,3.45583257,3176.0,3175.5,1.30089162]
[1763353502023,3.21153257,3176.0,3175.9,1.40009162]
[1763353502221,0.00373257,3176.0,3175.9,5.77348324]
[1763353502430,3.2078,3176.9,3176.8,0.2345]
[1763353502828,3.4521,3176.9,3176.8,0.2345]
[1763353503328,3.45436632,3176.9,3176.8,0.2345]
[1763353503529,3.21006632,3176.9,3176.8,0.2345]
[1763353503933,3.45436632,3176.9,3176.8,0.2345]
[1763353504227,3.21006632,3176.9,3176.8,0.2345]
[1763353504430,0.00226632,3176.9,3176.8,4.60789162]
[1763353504925,3.56092406,3179.0,3177.6,1.16559162]
[1763353504926,0.2443,3177.7,3177.6,1.16559162]
[1763353505131,0.2443,3177.7,3177.6,1.40009162]
[1763353505442,0.0746,3177.5,3177.0,3.5776]
[1763353505628,3.2078,3177.7,3177.0,3.5776]
[1763353505823,0.2443,3177.1,3177.0,3.21070503]
[1763353506021,0.2443,3177.1,3177.0,0.00290503]
[1763353506424,0.2443,3177.1,3177.0,0.23740503]
[1763353506728,3.21012755,3177.7,3177.0,3.58050503]
[1763353506936,0.00232755,3177.7,3177.6,0.2345]
[1763353508128,3.2078,3178.3,3178.2,0.2345]
[1763353508526,0.2443,3178.2,3178.1,1.16559162]
[1763353508725,0.2443,3178.2,3178.1,1.40009162]
[1763353508935,3.2078,3178.3,3178.1,1.40009162]
[1763353509143,3.2078,3178.3,3178.2,0.2345]
[1763353509342,3.45571712,3178.3,3178.2,0.2345]
[1763353509736,3.21141712,3178.3,3178.2,0.2345]
[1763353510038,0.00361712,3178.3,3178.2,1.40009162]
[1763353510337,0.00361712,3178.3,3178.2,0.2345]
[1763353510541,0.2443,3178.2,3178.1,3.2078]
[1763353511239,0.00361712,3178.3,3178.2,0.2345]
[1763353512843,0.00361712,3178.3,3178.1,3.2078]
[1763353512844,0.2443,3178.2,3178.1,3.2078]
[1763353513849,0.2443,3178.2,3177.6,3.2078]
[1763353514047,0.2443,3177.7,3177.6,3.2078]
[1763353514346,0.2443,3177.7,3177.6,3.4423]
[1763353514648,3.21141712,3178.3,3177.6,3.4423]
[1763353515549,0.2443,3177.7,3177.6,3.2078]
[1763353516053,0.2443,3177.7,3177.1,3.2078]
[1763353516550,0.2443,3177.6,3177.1,3.2078]
[1763353516746,0.2443,3177.6,3177.0,0.13820503]
[1763353517068,3.2078,3177.8,3177.7,0.2274]
[1763353517252,3.4565,3177.8,3177.7,0.2274]
[1763353517643,0.2487,3177.2,3177.1,3.2078]
[1763353517951,0.2487,3177.2,3177.0,0.00290503]
[1763353517952,0.2487,3177.1,3177.0,0.00290503]
[1763353518352,0.2487,3176.6,3176.5,0.00472099]
[1763353518850,0.2487,3176.6,3176.5,0.23612099]
[1763353519042,0.2487,3176.6,3176.5,0.00472099]
[1763353519444,3.2078,3176.9,3176.5,0.37761647]
[1763353520951,0.2318,3176.6,3176.5,0.23971647]
[1763353521150,0.2318,3176.6,3176.5,0.00831647]
[1763353522556,0.2318,3176.6,3176.5,0.23971647]
[1763353523258,0.2318,3176.6,3176.5,0.00831647]
[1763353526462,0.2318,3175.9,3175.8,3.2078]
[1763353527453,0.23425984,3175.9,3175.8,3.21003885]
[1763353527652,0.23425984,3175.9,3175.8,3.44143885]
[1763353528155,0.23425984,3175.9,3175.8,0.23363885]
[1763353528355,0.00245984,3175.9,3175.8,1.39923047]
[1763353530265,0.00469494,3176.2,3176.1,0.2314]
[1763353530565,0.00469494,3176.2,3176.1,4.60479162]
[1763353531260,0.00859629,3176.2,3176.1,3.4392]
[1763353531463,0.24039629,3176.2,3176.1,3.4392]
[1763353532054,0.00859629,3176.2,3176.1,3.4392]
[1763353532862,0.00859629,3176.2,3176.1,4.60479162]
[1763353534458,0.00859629,3176.2,3176.1,3.4392]
[1763353534964,1.6375761,3177.4,3176.9,0.2314]
[1763353534965,3.2078,3177.4,3176.9,0.2314]
[1763353535162,3.2078,3177.4,3176.5,0.1379]
[1763353535163,0.9444577,3177.3,3177.2,0.2314]
[1763353535571,3.2078,3177.4,3177.3,0.2314]
[1763353535868,3.92032039,3177.4,3177.3,0.2314]
[1763353536062,3.92426511,3177.4,3177.3,0.2314]
[1763353536568,4.15606511,3177.4,3177.3,0.2314]
[1763353537264,3.21174472,3177.4,3177.3,0.2314]
[1763353537465,0.00394472,3177.4,3177.3,0.2314]
[1763353538466,0.00394472,3177.4,3177.1,4.37339162]
[1763353538467,0.23574472,3177.4,3177.1,3.2078]
[1763353538861,0.23574472,3177.4,3177.3,0.2314]
[1763353539167,0.2318,3177.2,3177.1,3.2078]
[1763353539966,0.2318,3177.2,3177.1,3.4392]
[1763353540558,0.00394472,3177.4,3177.1,3.4392]
[1763353540758,0.23574472,3177.4,3177.3,0.2314]
[1763353541460,0.00394472,3177.4,3177.3,0.2314]
[1763353543064,4.472e-05,3177.4,3177.3,0.2314]
[1763353547671,4.472e-05,3177.4,3177.3,3.4392]
[1763353554865,0.22734472,3177.4,3177.3,3.4342]
[1763353555365,0.22734472,3177.4,3177.3,3.2078]
[1763353555571,0.22734472,3177.4,3177.3,3.4342]
[1763353555964,0.2273,3177.1,3176.9,3.2078]
[1763353556165,4.472e-05,3177.4,3177.0,0.3716]
[1763353556372,4.472e-05,3177.4,3177.0,0.1452]
[1763353560869,4.472e-05,3177.4,3177.3,1.31813293]
[1763353561177,4.472e-05,3177.4,3177.3,6.22321354]
[1763353561373,4.472e-05,3177.4,3177.3,47.02321354]
[1763353561580,3.2078,3178.1,3178.0,0.3487]
[1763353561778,3.2078,3178.1,3178.0,1.66683293]
[1763353561978,3.4351,3178.6,3178.5,0.2264]
[1763353562180,3.92133927,3178.6,3178.5,0.3716]
[1763353562581,3.9250229,3178.6,3178.5,0.3744304]
[1763353562877,0.00368363,3178.6,3178.5,0.3744304]
[1763353566182,0.23098363,3178.6,3178.5,0.3744304]
[1763353566380,0.00368363,3178.6,3178.5,0.3744304]
[1763353569187,0.23098363,3178.6,3178.5,0.2292304]
[1763353569684,0.00368363,3178.6,3178.5,0.3744304]
[1763353570075,3.4351,3179.5,3179.4,0.2264]
[1763353571087,3.43838662,3179.5,3179.4,0.2264]
[1763353571383,3.21108662,3179.5,3179.4,0.2264]
[1763353571583,3.43838662,3179.5,3179.4,0.2264]
[1763353571978,3.56938662,3179.5,3179.0,1.46333293]
[1763353572489,0.1373,3179.0,3178.5,3.3558304]
[1763353572788,0.2273,3178.6,3178.5,3.4370304]
[1763353573790,0.2273,3178.6,3178.5,3.6891456]
[1763353574178,0.2273,3178.6,3178.5,3.4627456]
[1763353574379,3.2078,3179.0,3178.9,0.2264]
[1763353574580,0.13428662,3179.5,3178.9,4.52593293]
[1763353574581,0.14058662,3179.5,3178.9,4.52593293]
[1763353574881,0.1373,3180.0,3179.4,4.52593293]
[1763353575076,0.1373,3180.0,3179.9,4.52593293]
[1763353575983,0.14093094,3180.0,3179.9,4.52593293]
[1763353576982,0.36823094,3180.0,3179.9,4.52593293]
[1763353577891,0.13863094,3180.0,3179.9,4.52593293]
[1763353578184,0.1373,3180.5,3179.9,4.52593293]
[1763353578388,0.1373,3180.5,3180.4,4.52593293]
[1763353579190,0.14007902,3180.5,3180.4,4.52593293]
[1763353579989,0.00277902,3180.5,3180.4,4.52593293]
[1763353580582,0.15177902,3180.5,3180.4,4.52593293]
[1763353582890,0.38397902,3180.5,3180.4,3.2078]
[1763353584291,0.1373,3181.0,3180.4,3.2078]
[1763353584500,0.149,3182.5,3180.4,3.2078]
[1763353584501,0.149,3182.0,3180.9,4.52593293]
[1763353584685,0.149,3182.0,3181.7,1.31813293]
[1763353585085,0.149,3182.0,3181.6,3.2078]
[1763353585284,0.149,3182.0,3181.8,1.31813293]
[1763353585480,0.15250355,3182.0,3181.6,0.003643]
[1763353586192,0.15250355,3182.0,3181.9,1.31813293]
[1763353586385,0.00350355,3182.0,3181.9,1.31813293]
[1763353586693,3.2078,3182.4,3181.9,1.31813293]
[1763353587192,0.149,3182.0,3181.9,1.31813293]
[1763353587585,0.00285317,3182.0,3181.9,1.31813293]
[1763353588192,0.9608,3182.4,3181.6,3.211443]
[1763353588387,0.149,3183.0,3182.3,1.31813293]
[1763353588587,0.149,3183.0,3182.9,3.2078]
[1763353588794,0.149,3182.5,3181.8,4.52593293]
[1763353588993,0.149,3182.5,3182.2,1.31813293]
[1763353589391,0.15281151,3182.5,3182.4,3.2078]
[1763353589788,0.149,3183.0,3182.4,3.2078]
[1763353589991,0.149,3183.0,3182.9,4.52593293]
[1763353590784,0.00241572,3183.0,3182.9,4.52593293]
[1763353590985,0.15141572,3183.0,3182.9,4.52593293]
[1763353591200,0.2322,3182.8,3182.7,0.24751528]
[1763353592490,0.2322,3182.8,3182.5,3.2078]
[1763353592799,0.15141572,3183.0,3182.5,3.2078]
[1763353593392,0.15141572,3183.0,3182.8,1.31813293]
[1763353593594,0.15141572,3183.0,3182.9,3.2078]
[1763353594896,0.38361572,3183.0,3182.9,3.2078]
[1763353595100,0.38361572,3183.0,3182.5,3.2078]
[1763353595406,0.38361572,3183.0,3182.5,4.52593293]
[1763353595786,0.15141572,3183.0,3182.9,1.31813293]
[1763353596500,0.15141572,3183.0,3182.5,4.52593293]
[1763353596999,0.2322,3182.6,3182.5,3.2078]
[1763353597191,0.15141572,3183.0,3182.5,3.2078]
[1763353597391,0.2322,3182.6,3182.5,3.2078]
[1763353597899,0.15141572,3183.0,3182.5,3.2078]
[1763353598100,0.15141572,3183.0,3182.9,3.2078]
[1763353603198,0.10916661,3183.2,3182.9,3.2078]
[1763353603401,0.149,3183.0,3182.9,3.2078]
[1763353604000,0.10916661,3183.2,3182.9,3.2078]
[1763353604203,0.11246561,3183.2,3182.9,3.2078]
[1763353604603,1.1273361,3184.9,3183.1,2.63626586]
[1763353604812,0.0346,3184.9,3184.8,1.31813293]
[1763353605008,0.149,3185.0,3184.8,1.31813293]
[1763353605209,0.0346,3184.9,3184.8,1.31813293]
[1763353605422,0.149,3185.5,3184.8,1.31813293]
[1763353605718,0.0346,3185.4,3185.3,1.31813293]
[1763353606025,0.0346,3185.4,3185.3,4.52593293]
[1763353606220,1.1273361,3186.8,3185.4,9.1392]
[1763353606526,0.149,3187.0,3186.5,3.2078]
[1763353606715,0.149,3187.0,3186.9,1.31813293]
[1763353607028,0.149,3187.5,3186.9,4.52593293]
[1763353607321,0.149,3188.5,3187.4,3.2078]
[1763353607516,0.149,3188.5,3187.3,1.31813293]
[1763353607517,3.2078,3188.0,3187.5,3.2078]
[1763353607721,0.149,3187.8,3187.5,3.2078]
[1763353607923,3.2078,3188.4,3187.7,1.31813293]
[1763353608127,0.149,3188.5,3188.3,3.2078]
[1763353608316,0.15157836,3188.5,3188.3,3.21139216]
[1763353608518,0.15157836,3188.5,3188.4,1.31813293]
[1763353608719,0.15157836,3188.5,3188.3,0.00359216]
[1763353609231,0.15157836,3188.5,3188.4,1.31813293]
[1763353609831,0.2254,3187.9,3187.8,3.2078]
[1763353610528,0.15157836,3188.5,3187.8,3.2078]
[1763353610729,0.15157836,3188.5,3188.0,1.31813293]
[1763353611025,0.2254,3188.2,3188.1,1.15537856]
[1763353611222,0.15623261,3188.5,3188.0,2.31075712]
[1763353611419,0.15623261,3188.5,3188.4,4.36317856]
[1763353612427,0.00723261,3188.5,3188.4,4.36317856]
[1763353612622,0.09064158,3189.7,3188.4,14.5158]
[1763353612821,0.135,3190.2,3189.6,2.31075712]
[1763353613024,0.135,3190.2,3190.1,1.15537856]
[1763353613226,0.135,3190.2,3190.1,1.5528519]
[1763353613534,0.00381461,3190.2,3190.1,0.40002397]
[1763353614232,2.3568,3191.1,3190.1,0.40002397]
[1763353614532,0.135,3190.6,3190.2,0.39747334]
[1763353614734,0.135,3190.6,3190.3,0.39747334]
[1763353614925,0.135,3190.6,3190.1,4.36572919]
[1763353614926,0.135,3190.6,3190.4,0.39747334]
[1763353615127,0.135,3190.6,3190.5,0.39747334]
[1763353615323,0.1390543,3190.6,3190.5,0.39747334]
[1763353616230,2.3568,3191.1,3190.5,3.62493386]
[1763353616439,0.135,3191.4,3191.0,2.31075712]
[1763353616626,0.135,3191.4,3191.3,1.15537856]
[1763353616826,0.135,3191.4,3191.3,1.57251242]
[1763353617033,0.3604,3191.4,3191.3,1.57251242]
[1763353617235,0.2254,3190.2,3190.1,3.21035063]
[1763353617439,0.3604,3189.9,3189.8,0.70637072]
[1763353617625,0.3604,3189.9,3189.0,3.2078]
[1763353617626,0.135,3189.2,3189.0,3.2078]
[1763353618532,0.135,3189.2,3189.0,3.21050704]
[1763353618733,0.135,3189.2,3189.1,1.15537856]
[1763353618929,0.00470559,3189.4,3189.1,1.15537856]
[1763353619137,0.135,3189.2,3189.1,1.15537856]
[1763353619629,0.00470559,3189.4,3189.3,1.15537856]
[1763353620637,3.3428,3190.6,3189.3,5.44595712]
[1763353620838,0.135,3190.6,3190.5,4.36317856]
[1763353621035,3.3428,3192.0,3190.5,5.51855712]
[1763353621238,0.135,3192.0,3191.3,1.15537856]
[1763353621437,0.135,3192.0,3191.9,1.15537856]
[1763353621634,0.135,3192.0,3189.7,11.299]
[1763353621635,0.135,3191.3,3190.2,1.15537856]
[1763353621941,0.135,3191.3,3191.0,1.15537856]
[1763353622140,0.13841628,3191.3,3191.0,0.00340354]
[1763353622344,1.66340856,3191.2,3191.0,0.00340354]
[1763353622533,0.135,3189.9,3189.7,1.15537856]
[1763353622842,0.135,3189.9,3189.5,0.00470559]
[1763353623038,0.135,3189.9,3189.8,4.36317856]
[1763353623238,0.135,3189.9,3189.8,1.15537856]
[1763353623536,3.3428,3189.9,3189.8,0.00237931]
[1763353624130,3.2078,3190.3,3189.8,1.15775787]
[1763353624336,3.2078,3190.3,3190.0,1.15537856]
[1763353624743,3.2078,3190.3,3190.2,1.53802552]
[1763353624940,0.135,3190.6,3190.2,1.53802552]
[1763353625237,3.2078,3190.9,3190.2,4.74582552]
[1763353625433,0.13841628,3191.3,3190.8,1.53802552]
[1763353625635,0.13841628,3191.3,3191.1,3.2078]
[1763353626036,0.00341628,3191.3,3191.0,3.2078]
[1763353627343,3.2078,3192.6,3191.2,1.53802552]
[1763353627642,3.2078,3192.6,3191.9,3.2078]
[1763353627834,0.135,3192.0,3191.9,3.2078]
[1763353628035,0.135,3192.0,3191.4,3.2078]
[1763353628234,0.13840208,3192.0,3191.4,3.21250559]
[1763353628649,0.13840208,3192.0,3191.8,3.2078]
[1763353629247,0.13840208,3192.0,3191.9,0.41286616]
[1763353630740,0.36380208,3192.0,3191.9,0.41286616]
[1763353630940,0.2254,3191.5,3191.4,0.00470559]
[1763353631252,0.135,3190.6,3190.5,3.2078]
[1763353632649,0.00470559,3190.9,3190.5,4.74582552]
[1763353633334,0.135,3190.6,3190.5,3.2078]
[1763353635541,0.135,3190.6,3190.2,0.00470559]
[1763353635542,6.135,3190.6,3190.2,0.00470559]
[1763353635743,5.9310646,3190.6,3189.8,0.00237931]
[1763353635948,0.135,3189.9,3189.8,0.00237931]
[1763353636642,0.135,3189.9,3189.8,0.07131471]
[1763353636843,0.135,3189.9,3189.8,0.00237931]
[1763353638251,0.3604,3189.9,3189.8,0.00237931]
[1763353638749,0.135,3189.9,3189.8,0.00237931]
[1763353639258,0.4337,3189.9,3189.8,0.00237931]
[1763353639944,0.135,3189.9,3189.8,0.00237931]
[1763353640647,0.4337,3189.9,3189.8,0.00237931]
[1763353641158,0.2987,3189.6,3189.5,0.00470559]
[1763353641457,0.135,3189.9,3189.6,0.0689354]
[1763353641659,0.135,3189.9,3189.5,1.54273111]
[1763353641660,0.0660646,3190.6,3189.8,3.2078]
[1763353641960,0.3647646,3190.6,3190.5,3.2078]
[1763353642155,0.36705711,3190.6,3190.5,3.21101018]
[1763353642850,0.23670136,3190.6,3190.5,3.21101018]
[1763353643157,0.23670136,3190.6,3190.5,0.38750384]
[1763353643457,0.23670136,3190.6,3190.5,3.84e-06]
[1763353643655,6.23670136,3190.6,3190.5,3.84e-06]
[1763353644354,6.23670136,3190.6,3190.0,3.2078]
[1763353644355,0.2987,3190.1,3190.0,2.2585]
[1763353644652,0.2987,3189.6,3189.5,3.21250559]
[1763353644858,3.2078,3190.2,3189.5,3.51295736]
[1763353646565,3.2078,3190.2,3189.5,3.21655736]
[1763353646858,0.2987,3189.6,3189.5,0.00875736]
[1763353647058,3.2078,3189.7,3189.5,0.00875736]
[1763353647255,3.2078,3190.1,3189.5,0.00875736]
[1763353647459,3.2078,3190.1,3189.7,1.15452898]
[1763353648062,0.2987,3189.8,3189.7,1.15452898]